fUSD/lending_fUSD_20250722
["ID","MTS","AMOUNT","RATE_DAILY","PERIOD"]
[373897744,1753142475030,-162.99929442,0.00016712,2]
[373897745,1753142485694,-14.54070558,0.00016712,2]
[373897753,1753142900608,-180.0,0.00019972,7]
[373897755,1753143031617,-511.0,0.00019508,2]
[373897757,1753143031627,-150.0,0.00019845,2]
[373897759,1753143031636,-300.0,0.00019878,2]
[373897760,1753143031646,-250.0,0.00019878,2]
[373897762,1753143031655,-150.0,0.00019911,2]
[373897763,1753143031663,-300.0,0.00019942,2]
[373897764,1753143031673,-180.33,0.00019952,2]
[373897765,1753143031682,-200.0,0.00019986,2]
[373897766,1753143031691,-200.0,0.00019998,2]
[373897767,1753143031700,-2521.5,0.00019998,2]
[373897768,1753143031710,-1200.0,0.00019999,2]
[373897769,1753143031722,-270.0,0.0002,2]
[373897770,1753143031730,-300.0,0.00020002,2]
[373897771,1753143031740,-300.0,0.00020002,2]
[373897772,1753143031753,-2817.13,0.00020003,2]
[373897773,1753143031766,-170.46,0.00020006,2]
[373897774,1753143031777,-406.0,0.00020022,2]
[373897775,1753143031789,-12111.87,0.00020023,2]
[373897776,1753143031799,-150.0,0.00020023,2]
[373897777,1753143031810,-150.0,0.00020023,2]
[373897778,1753143031819,-150.0,0.00020054,2]
[373897779,1753143031828,-1000.0,0.00020085,2]
[373897780,1753143031838,-150.0,0.000201,2]
[373897781,1753143031847,-250.0,0.00020104,2]
[373897782,1753143031856,-8857.28,0.00020105,2]
[373897783,1753143031865,-824.15,0.00020133,2]
[373897784,1753143031874,-150.0,0.00020152,2]
[373897785,1753143031883,-150.0,0.00020162,2]
[373897786,1753143031893,-150.0,0.00020266,2]
[373897788,1753143031902,-150.0,0.00020273,2]
[373897790,1753143031912,-150.0,0.00020273,2]
[373897792,1753143031921,-150.0,0.00020287,2]
[373897793,1753143031930,-150.0,0.00020312,2]
[373897794,1753143031939,-150.0,0.00020328,2]
[373897795,1753143031948,-150.0,0.00020345,2]
[373897796,1753143031957,-701.95496363,0.00020355,2]
[373897797,1753143031967,-600.0,0.00020404,2]
[373897798,1753143031977,-600.0,0.00020404,2]
[373897799,1753143031987,-600.0,0.00020404,2]
[373897800,1753143031996,-600.0,0.00020404,2]
[373897801,1753143032005,-600.0,0.00020404,2]
[373897802,1753143032014,-600.0,0.00020404,2]
[373897803,1753143032023,-600.0,0.00020404,2]
[373897804,1753143032032,-261.23813993,0.00020404,2]
[373897805,1753143032041,-1250.6809943,0.00020416,2]
[373897806,1753143032050,-1500.0,0.00020422,2]
[373897807,1753143032059,-666.0,0.00020422,2]
[373897808,1753143032069,-789.29807996,0.00020432,2]
[373897809,1753143032079,-5225.83,0.00020442,2]
[373897810,1753143032088,-165.38,0.0002055,2]
[373897812,1753143032097,-150.0,0.00020581,2]
[373897814,1753143032106,-150.0,0.00020623,2]
[373897816,1753143032116,-169.52,0.00020625,2]
[373897817,1753143032125,-150.0,0.00020629,2]
[373897818,1753143032134,-164.67,0.00020634,2]
[373897819,1753143032143,-346.92554585,0.00020637,2]
[373897821,1753143032153,-600.0,0.00020637,2]
[373897823,1753143032161,-159.31832802,0.00020637,2]
[373897826,1753143032171,-151.60329076,0.00020637,2]
[373897828,1753143032183,-160.0,0.00020637,2]
[373897829,1753143032193,-231.28369723,0.00020637,2]
[373897830,1753143032201,-4031.856,0.00020637,2]
[373897831,1753143032211,-160.21,0.00020645,2]
[373897832,1753143032221,-2360.73,0.00020668,2]
[373897833,1753143032230,-165.95,0.00020692,2]
[373897834,1753143032239,-150.0,0.00020704,2]
[373897835,1753143032248,-150.0,0.00020752,2]
[373897836,1753143032258,-157.43,0.00020771,2]
[373897837,1753143032268,-150.0,0.00020775,2]
[373897838,1753143032279,-150.0,0.00020791,2]
[373897839,1753143032289,-150.0,0.00020837,2]
[373897840,1753143032300,-150.0,0.00020883,2]
[373897841,1753143032309,-150.0,0.00021008,2]
[373897842,1753143032320,-150.0,0.00021036,2]
[373897843,1753143032330,-150.0,0.00021069,2]
[373897844,1753143032339,-150.0,0.00021089,2]
[373897845,1753143032348,-367.69,0.0002113,2]
[373897846,1753143032358,-367.69,0.00021141,2]
[373897847,1753143032367,-367.69,0.00021152,2]
[373897848,1753143032376,-367.69,0.00021163,2]
[373897849,1753143032386,-367.69,0.00021174,2]
[373897850,1753143032395,-600.0,0.00021185,2]
[373897851,1753143032404,-4181.034672,0.00021185,2]
[373897852,1753143032413,-367.69,0.00021185,2]
[373897853,1753143032423,-367.69,0.00021196,2]
[373897854,1753143032432,-367.69,0.00021208,2]
[373897855,1753143032442,-150.0,0.00021209,2]
[373897856,1753143032452,-367.69,0.00021219,2]
[373897857,1753143032461,-150.0,0.00021228,2]
[373897858,1753143032470,-367.69,0.0002123,2]
[373897859,1753143032480,-367.69,0.00021241,2]
[373897860,1753143032490,-367.69,0.00021252,2]
[373897861,1753143032499,-367.69,0.00021263,2]
[373897862,1753143032508,-511.0,0.00021268,4]
[373897863,1753143032517,-367.69,0.00021274,2]
[373897864,1753143032526,-367.69,0.00021285,2]
[373897865,1753143032536,-367.69,0.00021297,2]
[373897866,1753143032545,-367.69,0.00021308,2]
[373897867,1753143032554,-367.69,0.00021319,2]
[373897868,1753143032564,-150.0,0.0002132,2]
[373897869,1753143032573,-367.69,0.0002133,2]
[373897870,1753143032816,-170.46,0.0002134,2]
[373897871,1753143032827,-367.69,0.00021341,2]
[373897872,1753143032836,-164.67,0.00021408,2]
[373897873,1753143032846,-150.0,0.0002141,2]
[373897874,1753143032855,-300.0,0.00021459,2]
[373897875,1753143032864,-150.0,0.00021468,2]
[373897876,1753143032874,-278.92,0.00021479,2]
[373897877,1753143032884,-150.0,0.00021547,2]
[373897878,1753143032894,-150.0,0.000216,4]
[373897879,1753143032903,-150.0,0.000216,4]
[373897880,1753143032912,-173.75916572,0.000216,4]
[373897881,1753143032922,-208.064938,0.000216,4]
[373897882,1753143032933,-150.0,0.000216,4]
[373897883,1753143032942,-150.0,0.000216,4]
[373897884,1753143032951,-150.0,0.000216,4]
[373897885,1753143032961,-150.5365167,0.000216,4]
[373897886,1753143032970,-150.0,0.000216,4]
[373897887,1753143032980,-150.0,0.000216,4]
[373897888,1753143032990,-151.45039119,0.000216,4]
[373897889,1753143032999,-150.0,0.00021612,2]
[373897890,1753143033008,-150.0,0.00021677,2]
[373897891,1753143033018,-150.0,0.00021687,2]
[373897892,1753143033028,-150.0,0.00021721,2]
[373897893,1753143033038,-150.0,0.00021723,2]
[373897894,1753143033047,-600.0,0.00021733,2]
[373897895,1753143033057,-862.51967087,0.00021733,2]
[373897896,1753143033067,-150.0,0.00021745,2]
[373897897,1753143033078,-150.0,0.00021774,2]
[373897898,1753143033088,-420.0,0.0002178,2]
[373897899,1753143033097,-150.0,0.00021796,2]
[373897900,1753143033107,-1000.0,0.000218,2]
[373897901,1753143033116,-150.0,0.00021815,2]
[373897902,1753143033126,-2000.0,0.00021816,2]
[373897903,1753143033135,-5206.3457,0.00021817,2]
[373897904,1753143033145,-170.65504799,0.00021817,2]
[373897905,1753143033155,-654.57811849,0.00021817,2]
[373897906,1753143033165,-4684.13103523,0.00021817,2]
[373897907,1753143033174,-300.0,0.0002183,2]
[373897908,1753143033187,-300.0,0.0002183,2]
[373897909,1753143033196,-250.0,0.0002183,2]
[373897910,1753143033206,-150.0,0.00021855,2]
[373897911,1753143033215,-8205.56666341,0.00021873,2]
[373897912,1753143033227,-1680.0,0.00021881,2]
[373897913,1753143033236,-150.0,0.000219,4]
[373897914,1753143033246,-839.43554995,0.00021913,2]
[373897915,1753143033256,-210.89833443,0.00021913,2]
[373897916,1753143033267,-476.94025332,0.00021913,2]
[373897917,1753143033277,-160.0,0.00021913,2]
[373897918,1753143033286,-2000.0,0.00021916,2]
[373897919,1753143033295,-2000.0,0.00021916,2]
[373897920,1753143033305,-2000.0,0.00021916,2]
[373897921,1753143033314,-160.053046,0.00021917,2]
[373897922,1753143033324,-489.09046365,0.00021917,2]
[373897923,1753143033334,-480.0,0.00021917,2]
[373897924,1753143033344,-252.78,0.00021917,2]
[373897925,1753143033354,-480.0,0.00021917,2]
[373897926,1753143033364,-480.0,0.00021917,2]
[373897927,1753143033374,-480.0,0.00021917,2]
[373897928,1753143033383,-480.0,0.00021917,2]
[373897929,1753143033394,-480.0,0.00021917,2]
[373897930,1753143033404,-480.0,0.00021917,2]
[373897931,1753143033414,-330.01508765,0.00021917,2]
[373897932,1753143033426,-577.40552173,0.00021917,2]
[373897933,1753143033436,-480.0,0.00021917,2]
[373897934,1753143033446,-480.0,0.00021917,2]
[373897935,1753143033456,-592.60605638,0.00021917,2]
[373897936,1753143033466,-480.0,0.00021917,2]
[373897937,1753143033476,-480.0,0.00021917,2]
[373897938,1753143033486,-139.32943594,0.00021917,2]
[373897939,1753143033501,-360.67056406,0.00021917,2]
[373897940,1753143033511,-480.0,0.00021917,2]
[373897941,1753143033521,-480.0,0.00021917,2]
[373897942,1753143033530,-480.0,0.00021917,2]
[373897943,1753143033540,-480.0,0.00021917,2]
[373897944,1753143033550,-480.0,0.00021917,2]
[373897945,1753143033560,-480.0,0.00021917,2]
[373897946,1753143033570,-500.0,0.00021917,2]
[373897947,1753143033582,-480.0,0.00021917,2]
[373897948,1753143033592,-480.0,0.00021917,2]
[373897949,1753143033602,-480.0,0.00021917,2]
[373897950,1753143033612,-480.0,0.00021917,2]
[373897951,1753143033623,-500.0,0.00021917,2]
[373897952,1753143033632,-480.0,0.00021917,2]
[373897953,1753143033642,-480.0,0.00021917,2]
[373897954,1753143033652,-480.0,0.00021917,2]
[373897955,1753143033662,-262.92551193,0.00021917,2]
[373897956,1753143033675,-237.07448807,0.00021917,2]
[373897957,1753143033684,-362.02037004,0.00021917,2]
[373897958,1753143033725,-117.97962996,0.00021917,2]
[373897959,1753143033735,-203.02037004,0.00021917,2]
[373897960,1753143033746,-276.97962996,0.00021917,2]
[373897961,1753143033756,-221.71956834,0.00021917,2]
[373897962,1753143033767,-258.28043166,0.00021917,2]
[373897963,1753143033777,-500.0,0.00021917,2]
[373897964,1753143033786,-480.0,0.00021917,2]
[373897965,1753143033796,-500.0,0.00021917,2]
[373897966,1753143033806,-480.0,0.00021917,2]
[373897967,1753143033816,-500.0,0.00021917,2]
[373897968,1753143033829,-500.0,0.00021917,2]
[373897969,1753143033839,-17.87604112,0.00021917,2]
[373897970,1753143033851,-462.12395888,0.00021917,2]
[373897971,1753143033861,-480.0,0.00021917,2]
[373897972,1753143033871,-460.0,0.00021917,2]
[373897973,1753143033880,-480.0,0.00021917,2]
[373897974,1753143033890,-480.0,0.00021917,2]
[373897975,1753143033899,-480.0,0.00021917,2]
[373897976,1753143033909,-501.57413135,0.00021917,2]
[373897977,1753143033919,-480.0,0.00021917,2]
[373897978,1753143033930,-480.0,0.00021917,2]
[373897979,1753143033940,-480.0,0.00021917,2]
[373897980,1753143033949,-480.0,0.00021917,2]
[373897981,1753143033959,-602.12,0.00021917,2]
[373897982,1753143033969,-480.0,0.00021917,2]
[373897983,1753143033978,-500.0,0.00021917,2]
[373897984,1753143033988,-500.0,0.00021917,2]
[373897985,1753143033998,-480.0,0.00021917,2]
[373897986,1753143034007,-501.70282563,0.00021917,2]
[373897987,1753143034018,-504.13542143,0.00021917,2]
[373897988,1753143034027,-480.0,0.00021917,2]
[373897989,1753143034037,-528.19163917,0.00021917,2]
[373897990,1753143034046,-480.0,0.00021917,2]
[373897991,1753143034056,-500.0,0.00021917,2]
[373897992,1753143034065,-572.05633036,0.00021917,2]
[373897993,1753143034079,-500.0,0.00021917,2]
[373897994,1753143034088,-511.4588015,0.00021917,2]
[373897995,1753143034099,-480.0,0.00021917,2]
[373897996,1753143034108,-500.0,0.00021917,2]
[373897997,1753143034118,-500.0,0.00021917,2]
[373897998,1753143034128,-500.0,0.00021917,2]
[373897999,1753143034138,-480.0,0.00021917,2]
[373898000,1753143034148,-480.0,0.00021917,2]
[373898001,1753143034157,-500.0,0.00021917,2]
[373898002,1753143034167,-521.92038748,0.00021917,2]
[373898003,1753143034176,-480.0,0.00021917,2]
[373898004,1753143034190,-480.0,0.00021917,2]
[373898005,1753143034199,-500.0,0.00021917,2]
[373898006,1753143034209,-480.0,0.00021917,2]
[373898007,1753143034218,-500.0,0.00021917,2]
[373898008,1753143034229,-559.6905937,0.00021917,2]
[373898009,1753143034238,-480.0,0.00021917,2]
[373898010,1753143034248,-500.0,0.00021917,2]
[373898011,1753143034258,-480.0,0.00021917,2]
[373898012,1753143034268,-480.0,0.00021917,2]
[373898013,1753143034277,-480.0,0.00021917,2]
[373898014,1753143034287,-480.0,0.00021917,2]
[373898015,1753143034297,-480.0,0.00021917,2]
[373898016,1753143034306,-480.0,0.00021917,2]
[373898017,1753143034316,-480.0,0.00021917,2]
[373898018,1753143034328,-480.0,0.00021917,2]
[373898019,1753143034338,-480.0,0.00021917,2]
[373898020,1753143034348,-480.0,0.00021917,2]
[373898021,1753143034357,-500.0,0.00021917,2]
[373898022,1753143034367,-480.0,0.00021917,2]
[373898023,1753143034377,-480.0,0.00021917,2]
[373898024,1753143034387,-500.0,0.00021917,2]
[373898025,1753143034396,-500.0,0.00021917,2]
[373898026,1753143034406,-480.0,0.00021917,2]
[373898027,1753143034415,-480.0,0.00021917,2]
[373898028,1753143034425,-201.14264581,0.00021917,2]
[373898029,1753143034435,-480.0,0.00021917,2]
[373898030,1753143034444,-480.0,0.00021917,2]
[373898031,1753143034454,-480.0,0.00021917,2]
[373898032,1753143034463,-480.0,0.00021917,2]
[373898033,1753143034472,-480.0,0.00021917,2]
[373898034,1753143034482,-500.0,0.00021917,2]
[373898035,1753143034494,-480.0,0.00021917,2]
[373898036,1753143034506,-480.0,0.00021917,2]
[373898037,1753143034516,-480.0,0.00021917,2]
[373898038,1753143034526,-480.0,0.00021917,2]
[373898039,1753143034537,-480.0,0.00021917,2]
[373898040,1753143034547,-480.0,0.00021917,2]
[373898041,1753143034557,-480.0,0.00021917,2]
[373898042,1753143034567,-500.0,0.00021917,2]
[373898043,1753143034580,-500.0,0.00021917,2]
[373898044,1753143034590,-480.0,0.00021917,2]
[373898045,1753143034599,-480.0,0.00021917,2]
[373898046,1753143034609,-480.0,0.00021917,2]
[373898047,1753143034618,-423.92807068,0.00021917,2]
[373898048,1753143034641,-89.5514253,0.00021917,2]
[373898049,1753143034650,-480.0,0.00021917,2]
[373898050,1753143034659,-113.61786609,0.00021917,2]
[373898051,1753143034670,-274.73006917,0.00021917,2]
[373898052,1753143034693,-51.65206474,0.00021917,2]
[373898053,1753143034702,-480.0,0.00021917,2]
[373898054,1753143034712,-514.66,0.00021917,2]
[373898055,1753143034722,-480.0,0.00021917,2]
[373898056,1753143034731,-431.73948187,0.00021917,2]
[373898057,1753143034740,-480.0,0.00021917,2]
[373898058,1753143034750,-501.50001139,0.00021917,2]
[373898059,1753143034759,-480.0,0.00021917,2]
[373898060,1753143034768,-500.0,0.00021917,2]
[373898061,1753143034777,-480.0,0.00021917,2]
[373898062,1753143034787,-440.0,0.00021917,2]
[373898063,1753143034796,-480.0,0.00021917,2]
[373898064,1753143034805,-480.0,0.00021917,2]
[373898065,1753143034814,-480.0,0.00021917,2]
[373898066,1753143034825,-480.0,0.00021917,2]
[373898067,1753143034834,-480.0,0.00021917,2]
[373898068,1753143034843,-260.0,0.00021917,2]
[373898069,1753143034852,-500.0,0.00021917,2]
[373898070,1753143034862,-480.0,0.00021917,2]
[373898071,1753143034871,-480.0,0.00021917,2]
[373898072,1753143034880,-480.0,0.00021917,2]
[373898073,1753143034889,-500.0,0.00021917,2]
[373898074,1753143034898,-440.0,0.00021917,2]
[373898075,1753143034907,-480.0,0.00021917,2]
[373898076,1753143034917,-480.0,0.00021917,2]
[373898077,1753143034926,-480.0,0.00021917,2]
[373898078,1753143034937,-480.0,0.00021917,2]
[373898079,1753143034946,-480.0,0.00021917,2]
[373898080,1753143034955,-480.0,0.00021917,2]
[373898081,1753143034972,-500.0,0.00021917,2]
[373898082,1753143034982,-480.0,0.00021917,2]
[373898083,1753143034991,-480.0,0.00021917,2]
[373898084,1753143035001,-480.0,0.00021917,2]
[373898085,1753143035011,-480.0,0.00021917,2]
[373898086,1753143035021,-480.0,0.00021917,2]
[373898087,1753143035034,-500.0,0.00021917,2]
[373898088,1753143035043,-480.0,0.00021917,2]
[373898089,1753143035053,-480.0,0.00021917,2]
[373898090,1753143035063,-539.65,0.00021917,2]
[373898091,1753143035073,-480.0,0.00021917,2]
[373898092,1753143035083,-480.0,0.00021917,2]
[373898093,1753143035092,-480.0,0.00021917,2]
[373898094,1753143035101,-380.0,0.00021917,2]
[373898095,1753143035111,-480.0,0.00021917,2]
[373898096,1753143035120,-480.0,0.00021917,2]
[373898097,1753143035129,-210.03,0.00021917,2]
[373898098,1753143035142,-553.94,0.00021917,2]
[373898099,1753143035152,-480.0,0.00021917,2]
[373898100,1753143035161,-480.0,0.00021917,2]
[373898101,1753143035171,-480.0,0.00021917,2]
[373898102,1753143035181,-480.0,0.00021917,2]
[373898103,1753143035192,-480.0,0.00021917,2]
[373898104,1753143035202,-480.0,0.00021917,2]
[373898105,1753143035211,-480.0,0.00021917,2]
[373898106,1753143035220,-291.20452817,0.00021917,2]
[373898107,1753143035231,-480.0,0.00021917,2]
[373898108,1753143035242,-480.0,0.00021917,2]
[373898109,1753143035252,-480.0,0.00021917,2]
[373898110,1753143035271,-480.0,0.00021917,2]
[373898111,1753143035283,-480.0,0.00021917,2]
[373898112,1753143035292,-480.0,0.00021917,2]
[373898113,1753143035302,-480.0,0.00021917,2]
[373898114,1753143035311,-480.0,0.00021917,2]
[373898115,1753143035321,-480.0,0.00021917,2]
[373898116,1753143035333,-480.0,0.00021917,2]
[373898117,1753143035343,-480.0,0.00021917,2]
[373898118,1753143035352,-460.0,0.00021917,2]
[373898119,1753143035362,-480.0,0.00021917,2]
[373898120,1753143035372,-480.0,0.00021917,2]
[373898121,1753143035381,-1204.44,0.00021917,2]
[373898122,1753143035390,-480.0,0.00021917,2]
[373898123,1753143035400,-480.0,0.00021917,2]
[373898124,1753143035409,-480.0,0.00021917,2]
[373898125,1753143035419,-480.0,0.00021917,2]
[373898126,1753143035428,-480.0,0.00021917,2]
[373898127,1753143035438,-480.0,0.00021917,2]
[373898128,1753143035447,-480.0,0.00021917,2]
[373898129,1753143035456,-480.0,0.00021917,2]
[373898130,1753143035466,-480.0,0.00021917,2]
[373898131,1753143035475,-500.0,0.00021917,2]
[373898132,1753143035484,-480.0,0.00021917,2]
[373898133,1753143035494,-480.0,0.00021917,2]
[373898134,1753143035504,-480.0,0.00021917,2]
[373898135,1753143035513,-480.0,0.00021917,2]
[373898136,1753143035523,-500.0,0.00021917,2]
[373898137,1753143035532,-506.76168674,0.00021917,2]
[373898138,1753143035542,-480.0,0.00021917,2]
[373898139,1753143035551,-480.0,0.00021917,2]
[373898140,1753143035560,-480.0,0.00021917,2]
[373898141,1753143035571,-270.68541249,0.00021917,2]
[373898142,1753143035583,-1520.09,0.00021917,2]
[373898143,1753143035593,-480.0,0.00021917,2]
[373898144,1753143035603,-480.0,0.00021917,2]
[373898145,1753143035612,-480.0,0.00021917,2]
[373898146,1753143035621,-480.0,0.00021917,2]
[373898147,1753143035631,-480.0,0.00021917,2]
[373898148,1753143035640,-480.0,0.00021917,2]
[373898149,1753143035649,-480.0,0.00021917,2]
[373898150,1753143035659,-480.0,0.00021917,2]
[373898151,1753143035668,-480.0,0.00021917,2]
[373898152,1753143035678,-480.0,0.00021917,2]
[373898153,1753143035687,-480.0,0.00021917,2]
[373898154,1753143035697,-480.0,0.00021917,2]
[373898155,1753143035707,-480.0,0.00021917,2]
[373898156,1753143035716,-480.0,0.00021917,2]
[373898157,1753143035726,-2852.24,0.00021917,2]
[373898158,1753143035735,-500.0,0.00021917,2]
[373898159,1753143035745,-480.0,0.00021917,2]
[373898160,1753143035755,-480.0,0.00021917,2]
[373898161,1753143035765,-500.0,0.00021917,2]
[373898162,1753143035776,-480.0,0.00021917,2]
[373898163,1753143035786,-480.0,0.00021917,2]
[373898164,1753143035795,-500.0,0.00021917,2]
[373898165,1753143035804,-480.0,0.00021917,2]
[373898166,1753143035813,-480.0,0.00021917,2]
[373898167,1753143035823,-500.0,0.00021917,2]
[373898168,1753143035834,-1078.86,0.00021917,2]
[373898169,1753143035843,-500.0,0.00021917,2]
[373898170,1753143035853,-480.0,0.00021917,2]
[373898171,1753143035863,-380.0,0.00021917,2]
[373898172,1753143035872,-480.0,0.00021917,2]
[373898173,1753143035882,-480.0,0.00021917,2]
[373898174,1753143035891,-480.0,0.00021917,2]
[373898175,1753143035900,-500.0,0.00021917,2]
[373898176,1753143035909,-480.0,0.00021917,2]
[373898177,1753143035919,-480.0,0.00021917,2]
[373898178,1753143035928,-480.0,0.00021917,2]
[373898179,1753143035937,-480.0,0.00021917,2]
[373898180,1753143035946,-494.66,0.00021917,2]
[373898181,1753143035956,-480.0,0.00021917,2]
[373898182,1753143035965,-480.0,0.00021917,2]
[373898183,1753143035974,-480.0,0.00021917,2]
[373898184,1753143035983,-480.0,0.00021917,2]
[373898185,1753143035992,-480.0,0.00021917,2]
[373898186,1753143036002,-480.0,0.00021917,2]
[373898187,1753143036011,-480.0,0.00021917,2]
[373898188,1753143036021,-480.0,0.00021917,2]
[373898189,1753143036030,-480.0,0.00021917,2]
[373898190,1753143036040,-480.0,0.00021917,2]
[373898191,1753143036049,-480.0,0.00021917,2]
[373898192,1753143036058,-480.0,0.00021917,2]
[373898193,1753143036067,-480.0,0.00021917,2]
[373898194,1753143036078,-480.0,0.00021917,2]
[373898195,1753143036087,-480.0,0.00021917,2]
[373898196,1753143036096,-481.68203243,0.00021917,2]
[373898197,1753143036105,-480.0,0.00021917,2]
[373898198,1753143036114,-480.0,0.00021917,2]
[373898199,1753143036123,-480.0,0.00021917,2]
[373898200,1753143036133,-480.0,0.00021917,2]
[373898201,1753143036142,-480.0,0.00021917,2]
[373898202,1753143036152,-480.0,0.00021917,2]
[373898203,1753143036162,-480.0,0.00021917,2]
[373898204,1753143036172,-480.0,0.00021917,2]
[373898205,1753143036183,-480.0,0.00021917,2]
[373898206,1753143036193,-480.0,0.00021917,2]
[373898207,1753143036202,-480.0,0.00021917,2]
[373898208,1753143036211,-480.0,0.00021917,2]
[373898209,1753143036220,-480.0,0.00021917,2]
[373898210,1753143036230,-480.0,0.00021917,2]
[373898211,1753143036239,-666.37,0.00021917,2]
[373898212,1753143036253,-480.0,0.00021917,2]
[373898213,1753143036267,-480.0,0.00021917,2]
[373898214,1753143036276,-758.54,0.00021917,2]
[373898215,1753143036286,-480.0,0.00021917,2]
[373898216,1753143036295,-480.0,0.00021917,2]
[373898217,1753143036304,-500.0,0.00021917,2]
[373898218,1753143036314,-500.00165756,0.00021917,2]
[373898219,1753143036323,-480.0,0.00021917,2]
[373898220,1753143036333,-519.99,0.00021917,2]
[373898221,1753143036342,-480.0,0.00021917,2]
[373898222,1753143036351,-480.0,0.00021917,2]
[373898223,1753143036361,-480.0,0.00021917,2]
[373898224,1753143036371,-480.0,0.00021917,2]
[373898225,1753143036380,-480.0,0.00021917,2]
[373898226,1753143036390,-505.35,0.00021917,2]
[373898227,1753143036399,-500.0,0.00021917,2]
[373898228,1753143036409,-480.0,0.00021917,2]
[373898229,1753143036418,-500.0,0.00021917,2]
[373898230,1753143036428,-500.0,0.00021917,2]
[373898231,1753143036438,-480.0,0.00021917,2]
[373898232,1753143036448,-480.0,0.00021917,2]
[373898233,1753143036460,-480.0,0.00021917,2]
[373898234,1753143036475,-480.0,0.00021917,2]
[373898235,1753143036486,-480.0,0.00021917,2]
[373898236,1753143036496,-480.0,0.00021917,2]
[373898237,1753143036507,-500.0,0.00021917,2]
[373898238,1753143036519,-480.0,0.00021917,2]
[373898239,1753143036530,-500.0,0.00021917,2]
[373898240,1753143036540,-500.0,0.00021917,2]
[373898241,1753143036550,-420.04334562,0.00021917,2]
[373898242,1753143036559,-480.0,0.00021917,2]
[373898243,1753143036568,-500.0,0.00021917,2]
[373898244,1753143036578,-521.45999854,0.00021917,2]
[373898245,1753143036587,-480.0,0.00021917,2]
[373898246,1753143036599,-633.79,0.00021917,2]
[373898247,1753143036609,-1705.27,0.00021917,2]
[373898248,1753143036618,-562.45,0.00021917,2]
[373898249,1753143036627,-480.0,0.00021917,2]
[373898250,1753143036640,-480.0,0.00021917,2]
[373898251,1753143036650,-480.0,0.00021917,2]
[373898252,1753143036660,-480.0,0.00021917,2]
[373898253,1753143036670,-1190.42,0.00021917,2]
[373898254,1753143036682,-480.0,0.00021917,2]
[373898255,1753143036692,-171.43490948,0.00021917,2]
[373898256,1753143036702,-779.38,0.00021917,2]
[373898257,1753143036711,-539.62,0.00021917,2]
[373898258,1753143036720,-480.0,0.00021917,2]
[373898259,1753143036730,-513.12056971,0.00021917,2]
[373898260,1753143036739,-480.0,0.00021917,2]
[373898261,1753143036748,-497.87,0.00021917,2]
[373898262,1753143036758,-480.0,0.00021917,2]
[373898263,1753143036767,-480.0,0.00021917,2]
[373898264,1753143036776,-460.0,0.00021917,2]
[373898265,1753143036785,-1214.11,0.00021917,2]